Cogmind - Beta 17 @@@ ROGUE MODE // 2026.08.17 @ 05:58:35 Player: MrFartsburg Result: Destroyed by Y-45 Defender with Heavy Assault Rifle Performance ------------- Evolutions (1) 500 Regions Visited (2) 400 Robots Destroyed (2) 10 Value Destroyed (90) 90 Prototype IDs (0) 0 Alien Tech Used (0) 0 Bonus (200) 200 TOTAL SCORE: 1200 Bonus ------- Pacifist 200 Cogmind --------- Core Integrity 0/400 Matter 146/300 Energy 100/100 System Corruption 0% Temperature Cool (52) Movement Core (700) Ox13 Location -9/Materials Parts ------- > --- POWER (2) -------- (None) > --- PROPULSION (2) --- (None) > --- UTILITY (3) ------ High-capacity Storage Unit > --- WEAPON (2) ------- (None) > --- INVENTORY (20) --- (None) Peak State ------------ > --- POWER ------------ Ion Engine > --- PROPULSION ------- Improved Aluminum Leg Improved Aluminum Leg > --- UTILITY ---------- High-capacity Storage Unit Terrain Scanner Improved Light Armor Plating > --- WEAPON ----------- Medium Laser Light Assault Rifle > --- INVENTORY -------- (None) [Rating: 12] Favorites ----------- Power Light Ion Engine Engine Light Ion Engine Propulsion Aluminum Leg Leg Aluminum Leg Utility Large Matter Pod Device Terrain Scanner Storage Large Matter Pod Protection Improved Light Armor Plating Weapon Light Assault Rifle Energy Gun EM Pulse Gun Ballistic Gun Light Assault Rifle Build | -11 -10 -9 ------- Run | Yrd Mat Mat Slots Evolved 2 | . . 2 Power 1 | . . 1 Propulsion . | . . . Utility 1 | . . 1 Weapon . | . . . Parts Attached 17 | 6 2 9 Power 4 | 1 . 3 Engine 4 | 1 . 3 Core . | . . . Reactor . | . . . Propulsion 4 | 2 . 2 Treads . | . . . Leg 4 | 2 . 2 Wheel . | . . . Hover . | . . . Flight . | . . . Utility 5 | 1 2 2 Device 1 | . . 1 Storage 3 | 1 2 . Processor . | . . . Hackware . | . . . Protection 1 | . . 1 Artifact . | . . . Weapon 4 | 2 . 2 Energy Gun 2 | 1 . 1 Energy Cannon . | . . . Ballistic Gun 2 | 1 . 1 Ballistic Cannon . | . . . Launcher . | . . . Special Weapon . | . . . Impact Weapon . | . . . Slashing Weapon . | . . . Piercing Weapon . | . . . Special Melee Weapon . | . . . Unidentified Prototypes . | . . . Parts Lost 13 | . . 13 Power 4 | . . 4 Propulsion 2 | . . 2 Utility 3 | . . 3 Weapon 4 | . . 4 Highest Loss Streak 10 | . . 10 To Critical Strikes 1 | . . 1 Average Backups . | . 1 . Power . | . 1 . Propulsion . | . . . Utility . | . . . Weapon . | . . . Tool/Special . | . . . Unused Backups . | . . . Power . | . . . Propulsion . | . . . Utility . | . . . Weapon . | . . . Tool/Special . | . . . Average Slot Usage (%) 89 | . 95 85 Engine 15 | . 14 17 Leg 23 | . 28 19 Device 5 | . . 9 Storage 20 | . 23 18 Energy Gun 10 | . 14 8 Ballistic Gun 11 | . 14 10 Peak Build Rating 12 | 6 7 12 Average Rating 7 | 4 6 8 On Entrance 4 | . 6 7 Avg Prop Armor Cover (%) . | . . . Naked Turns . | . . . Heaviest Build 63 | 11 49 63 Greatest Support 26 | 20 20 26 Greatest Overweight (x) 20 | 3 2 20 Average Overweight (x) . | . . 2 Largest Inventory Capacity 20 | 8 20 20 Average Capacity 14 | 7 9 20 Most Carried 2 | 1 2 1 Average Carried . | . 1 . Final Capacity 20 | 8 20 20 Final Carried 2 | 1 2 . Class Distribution -------------------- 100% | Mutant Dominant Class ---------------- Mutant | -10/Materials Mutant | -9/Materials Resources | -11 -10 -9 ----------- Run | Yrd Mat Mat Matter Collected 176 | 176 . . Remotely . | . . . Salvage Created 103 | . . 103 Parts 8 | . . 8 Haulers Intercepted . | . . . Recyclers Shooed . | . . . Parts Field Recycled . | . . . Retrieved Matter . | . . . Parts Self-Destructed . | . . . Prevented . | . . . Parts Restored . | . . . Kills | -11 -10 -9 ------- Run | Yrd Mat Mat Combat Hostiles Destroyed 2 | . . 2 Guns 2 | . . 2 Classes Destroyed 1 | . . 1 Sentry 2 | . . 2 Best Kill Streak 2 | . . 2 Combat Bots Only 2 | . . 2 Max Kills in Single Turn 1 | . . 1 Gunslinging . | . . . Exploded . | . . . Melee . | . . . Uniques/NPCs Destroyed . | . . . Combat | -11 -10 -9 -------- Run | Yrd Mat Mat Hostile Shots Fired 149 | . 11 138 Missed 29 | . . 29 Hits 120 | . 11 109 Projectile 120 | . 11 109 Critical Strikes 9 | . . 9 Damage Taken 1671 | . 142 1529 Core 454 | . 41 413 Absorbed by Shields . | . . . Core Remaining (%) 91 | 100 83 . Volleys Fired 13 | . 4 9 Largest 2 | . 2 2 Hottest 70 | . 60 70 Shots Fired 22 | . 8 14 Gun 22 | . 8 14 Cannon . | . . . Launcher . | . . . Special . | . . . Kinetic 13 | . 4 9 Thermal 5 | . . 5 Explosive . | . . . Electromagnetic 4 | . 4 . Robot Hit Streak 3 | . 3 3 Robot Miss Streak 3 | . 3 3 Penetration Max . | . . . Secondary Targets . | . . . Shots Hit Robots 11 | . 3 8 Core Hits 3 | . . 3 Critical Kills . | . . . Critical Parts Destroyed . | . . . Critical Strikes . | . . . Melee Attacks . | . . . Impact . | . . . Slashing . | . . . Piercing . | . . . Sneak Attacks . | . . . Combat Hostiles . | . . . Follow-up Attacks . | . . . Damage Inflicted 162 | . 53 109 Guns 162 | . 53 109 Cannons . | . . . Explosions . | . . . Melee . | . . . Ramming . | . . . Kinetic 105 | . 9 96 Thermal 13 | . . 13 Explosive . | . . . Electromagnetic 44 | . 44 . Impact . | . . . Slashing . | . . . Piercing . | . . . Highest Corruption . | . . . Average Corruption . | . . . Corruption Purged . | . . . Corruption Blocked . | . . . Overload Shots . | . . . Overflow Damage . | . . . Projectiles . | . . . Explosions . | . . . Melee . | . . . Knockbacks . | . . . Impact . | . . . Kinetic . | . . . Secondary . | . . . Self-Inflicted Damage . | . . . Shots . | . . . Rammed . | . . . Targets Rammed . | . . . Kicked . | . . . Crushed . | . . . Highest Temperature 189 | . 40 189 Average Temperature 96 | . 20 115 Received Heat Transfer 882 | . 81 801 Siege Activations . | . . . Martial Activations . | . . . Shielding Activations . | . . . Robots Disrupted . | . . . Combat Hostiles . | . . . Robots Corrupted . | . . . Combat Hostiles . | . . . Parts Fried . | . . . Impact Corruptions . | . . . Robots Melted . | . . . Combat Hostiles . | . . . Parts Melted . | . . . Heat Transferred 37 | . . 37 Parts Sabotaged . | . . . Parts Stolen . | . . . Parts Stripped . | . . . Power Chain Reactions . | . . . Alert | -11 -10 -9 ------- Run | Yrd Mat Mat Maximum Alert Level . | . . . Low Security (%) 100 | 100 100 100 Level 1 . | . . . Level 2 . | . . . Level 3 . | . . . Level 4 . | . . . Level 5 . | . . . High Security . | . . . Max Security . | . . . Peak Influence 60 | . . 60 Initial . | . . . Average 1 | . . 2 Influence Increases 82 | . . 82 Destroy 0b10 Robot/C 40 | . . 40 Destroy Leader 20 | . . 20 Successful Hack 7 | . . 7 Lose Combat Pursuer 15 | . . 15 Influence Decreases 42 | . . 42 Time Decay 7 | . . 7 Lost Part 35 | . . 35 Squads Dispatched 1 | . . 1 Investigation . | . . . Extermination . | . . . Reinforcement 1 | . . 1 Assault . | . . . Garrison . | . . . Intercept . | . . . Searches Triggered . | . . . Construction Impeded . | . . . Haulers Reinforced . | . . . Active Scanning Responses . | . . . Cargo Convoy Interrupts . | . . . Stealth | -11 -10 -9 --------- Run | Yrd Mat Mat Distress Signals 2 | . . 2 Communications Jammed . | . . . Distress Signals . | . . . Times Spotted 14 | . 5 9 Peak Tracking Total 8 | . 3 8 Tactical Retreats 1 | . . 1 Traps | -11 -10 -9 ------- Run | Yrd Mat Mat Traps Triggered . | . . . Indirectly . | . . . Trap Hack Attempts . | . . . Triggered . | . . . Disarmed . | . . . Reprogrammed . | . . . Reused . | . . . Traps Extracted . | . . . Installed . | . . . Triggered . | . . . Machines | -11 -10 -9 ---------- Run | Yrd Mat Mat Machines Disabled . | . . . Max in Single Turn . | . . . Machines Repaired . | . . . Machines Dismantled . | . . . Machines Sabotaged . | . . . Overloaded Fab Kills . | . . . Hacking | -11 -10 -9 --------- Run | Yrd Mat Mat Machines Accessed 2 | . 1 1 Terminals 1 | . . 1 Fabricators . | . . . Repair Stations . | . . . Recycling Units 1 | . 1 . Scanalyzers . | . . . Garrison Access . | . . . Total Hacks 3 | . 2 1 Successful 2 | . 1 1 Failed 1 | . 1 . Catastrophic . | . . . Database Lockouts . | . . . Manual . | . . . Terminals 1 | . . 1 Fabricators . | . . . Repair Stations . | . . . Recycling Units 2 | . 2 . Scanalyzers . | . . . Garrison Access . | . . . Terminal Hacks 1 | . . 1 Registered Components 1 | . . 1 Fabricator Hacks . | . . . Repair Station Hacks . | . . . Recycling Unit Hacks 1 | . 1 . Process 1 | . 1 . Scanalyzer . | . . . Garrison Access Hacks . | . . . Unauthorized Hacks . | . . . Terminals . | . . . Fabricators . | . . . Repair Stations . | . . . Recycling Units . | . . . Scanalyzers . | . . . Garrison Access . | . . . Data Cores Recovered . | . . . Used . | . . . Hacking Detections . | . . . Full Trace Events . | . . . Feedback Events . | . . . Feedback Blocked . | . . . Robot Schematics Acquired . | . . . Robots Built . | . . . Authchips . | . . . Time . | . . . Total Robot Build Rating . | . . . Part Schematics Acquired . | . . . Parts Built . | . . . Authchips . | . . . Time . | . . . Total Part Build Rating . | . . . Part Studies Acquired . | . . . Parts Repaired . | . . . Time . | . . . Parts Recycled . | . . . Recycled Matter 65 | . 65 . Retrieved Matter . | . . . Retrieved Components . | . . . Parts Scanalyzed . | . . . Part Schematics Acquired . | . . . Parts Damaged . | . . . Bothacking | -11 -10 -9 ------------ Run | Yrd Mat Mat Used RIF Installer . | . . . Robots Hacked . | . . . Non-combat . | . . . Combat . | . . . Robot Hacks Applied . | . . . Relay Couplers Released . | . . . Fabnet Peak Effective % . | . . . Robots Rewired . | . . . Allies Hacked . | . . . Hacks Repelled . | . . . Allies | -11 -10 -9 -------- Run | Yrd Mat Mat Total Allies . | . . . Largest Group . | . . . Highest-Rated Group . | . . . Highest-Rated Ally . | . . . Total Orders . | . . . Ally Attacks . | . . . Total Damage . | . . . Kills . | . . . Allies Corrupted . | . . . Allies Melted . | . . . Intel | -11 -10 -9 ------- Run | Yrd Mat Mat Active Infowar (turns) 191 | . . 191 Terrain 191 | . . 191 Robot Analysis Total . | . . . Derelict Logs Recovered . | . . . Drone Launches . | . . . Drone Recoveries . | . . . Exploration | -11 -10 -9 ------------- Run | Yrd Mat Mat Turns Passed 446 | 63 166 217 Spaces Moved 227 | 40 119 68 Core 9 | 7 . 2 Treads . | . . . Legs 218 | 33 119 66 Wheels . | . . . Hover . | . . . Flight . | . . . Fastest Speed 50 | 50 120 190 Average Speed 171 | 134 128 269 Slowest Speed 1050 | 200 260 1050 Overloaded Moves . | . . . Propulsion Burnouts . | . . . Robots Hopped . | . . . Potential Cave-ins . | . . . Cave-ins Triggered . | . . . Exploration Rate (%) 13 | 4 23 13 Regions Visited 2 Branch Regions . Pre-discovered Areas . | . . . Known Exits Taken . | . . . Unknown Exits Taken 2 | 1 1 . Scrap Searched . | . . . Spaces Dug . | . . . Terrain Destroyed . | . . . Melee . | . . . Projectile . | . . . AOE . | . . . Terrain Rammed . | . . . Walls Destroyed . | . . . Machines Disabled . | . . . Actions | -11 -10 -9 --------- Run | Yrd Mat Mat Total 261 | 46 126 89 Wait . | . . . Move 225 | 39 118 68 Hop . | . . . Pick Up 3 | 1 1 1 Fast Attach 14 | 6 2 6 Attach 3 | . . 3 Detach . | . . . Swap . | . . . Drop 3 | . 1 2 Fire 13 | . 4 9 Melee . | . . . Ram . | . . . Kick . | . . . Crush . | . . . Escape Stasis . | . . . Rewire . | . . . Trap . | . . . Miscellaneous . | . . . Route ------- -11/Scrapyard -10/Materials -9/Materials History --------- Turn | Location | Event 16 | -11/Scrapyard | Discovered new exit (range 15) 64 | -11/Scrapyard | Entered Materials 215 | -10/Materials | Discovered new exit (range 8) 230 | -10/Materials | Entered another Materials area 230 | -9/Materials | Evolved 2 slots: Power x1, Utility x1 309 | -9/Materials | Build established: Mutant 404 | -9/Materials | Lost 3 parts (1p1u1w) 432 | -9/Materials | Core integrity fell below 50% 441 | -9/Materials | Core integrity fell below 20% 447 | -9/Materials | Destroyed by Y-45 Defender with Heavy Assault Rifle Last Messages --------------- Lgt. Assault Rifle destroyed. Acquired Deuterium Engine. Critical hit (Destroy). Imp. Aluminum Leg destroyed. Acquired Deuterium Engine. Terrain Scanner destroyed. Imp. Light Armor Plating destroyed. Critical hit (Burn: +37). Med. Laser destroyed. Critical hit (Burn: +37). Deuterium Engine destroyed. Critical hit (Burn: +37). Acquired Hpw. Shotgun. Critical hit (Burn: +37). Y-45 Defender destroyed. Critical hit (Burn: +37). Deuterium Engine destroyed. Hpw. Shotgun destroyed. R-06 Scavenger collects Lgt. Armor Plating. R-06 Scavenger collects Heat Sink. Map ----- +----------------------------------------------------+ | ?#??# """ """ # """ #???????????????????????? | | ????# """ """ # """ #????????????????????????? | | ????# """ """ # """ #??????????#?????????????? | | ????# # ?#???????????????????????? | | ?#?## #??T" ???????????????????????????? | | ############+######+############## ###???????????? | | T # #???????????? | | # #???????????? | | """ # ????????? | | """ + ###+#############+####### #???????????? | | """ # # ?? ? ????# #?????????????????? | | # #""??? ??????# """ #?????????????????? | | ###### #"??????? #??# """ #?????????????????? | | ?????#####??????? ????# """ ##????????????????? | | ??????#???? ??????????#= #?? ??????????????? | | ???#???????????????#### | """ #?????#???????????? | | #???#??????????????# + | """ #???? #####???????? | | ?????#?????????????####= """ #??? ??????? | | ?????????????????#????# #?? ??????? | | ???????#????? ? ????#?######+##### ?????? | | ???#?????????????#????????# #???????????? | | ?????????????????# ######Y ##??????????? | | ?????????????????# !^=gr #???????????? | | ?????????????????# ####=% g #######???????????? | | ??????????????????????#?#%*[ ##????#?#?????????? | | ??????????????????? ????#@* !#?????????????????? | | ????????????????????????#[[**!!#?????????????????? | | ????????????????????????########?????????????????? | | ?????????????????#???????????????????????????????? | | ?????????????????????????#???????????????????????? | | ?????????????????????????????????????#???????????? | | | | | | | | | | | | | | | | | | | | | | | | | | | | | | | | | | | | | | | +----------------------------------------------------+ Best States ------------- Heat Dissipation 28 Energy Generation 15 Energy Capacity 275 Matter Stores 216 Matter Capacity 450 Sight Range 16 Terrain Scan Range 14 Terrain Scan Density 10 Armor Coverage 150 Evasion (%) 55 Item Schematics ----------------- None Robot Schematics ------------------ None Fabricated ------------ Nothing Repaired ---------- Nothing Studied --------- None Alien Tech Used ----------------- None Achievements -------------- None Challenges ------------ None Game ------ Seed MyomerActiveTerrabomb Manual? 0 Play Time 00:08:41 Cumulative 31.6 hours Start 2026.08.17 @ 05:52:26 End 2026.08.17 @ 05:58:35 Sessions 1 Manual Loads 0 Difficulty Rogue Special Mode None Game No. 60 Rogue 60 Adventurer 0 Explorer 0 Win Type - Total 0 Types 0/0/0/0/0/0/0/0/0/0 Lore% 13 Gallery% 23 Achievement% 15 Wizard Run 0 Options --------- Layout 1 ASCII 0 Keyboard 0 Movement Numpad Keybinds 0 Fullscreen 1 Font 32/SmallcapsGlow Map View 50x35 Zoom Use 0% Tactical HUD 0 Map Filters NONE Filters NONE Steam 1 RUN: a2bcb77b-c84c-4d3f-956f-d5d209fb2285